bitfinex-derivatives/quotes_ETHF0:USTF0_20251103
["timestamp","ask_amount","ask_price","bid_price","bid_amount"]
[1762153361276,3.2078,3710.7,3709.7,3.23475672]
[1762153361579,3.2078,3711.1,3710.0,0.3432]
[1762153361773,3.2078,3710.7,3710.0,0.3432]
[1762153364084,3.2078,3710.7,3710.6,0.5566]
[1762153364487,3.2078,3711.1,3710.1,3.2078]
[1762153364875,3.2078,3711.1,3710.5,3.2078]
[1762153366283,3.2078,3711.1,3710.4,0.3432]
[1762153366487,3.2078,3711.1,3710.1,3.2078]
[1762153366989,3.2078,3711.1,3710.4,0.3344]
[1762153367182,3.2078,3711.6,3711.0,4.1153]
[1762153368776,3.2078,3712.1,3711.5,0.5731]
[1762153369789,3.2078,3712.1,3711.6,0.3344]
[1762153369991,3.2078,3712.1,3711.4,3.2078]
[1762153370486,0.00189705,3712.8,3712.4,0.5731]
[1762153370793,0.00189705,3712.8,3712.4,0.00272797]
[1762153371087,0.00189705,3712.8,3712.7,0.5731]
[1762153371680,0.00189705,3712.8,3712.4,3.21052797]
[1762153372284,0.00189705,3712.8,3712.7,0.5731]
[1762153372787,0.00189705,3712.8,3712.4,3.21052797]
[1762153374992,3.2078,3713.3,3713.2,0.5731]
[1762153375187,3.2078,3713.8,3713.2,0.5731]
[1762153375488,3.2078,3713.8,3713.7,0.5731]
[1762153376090,0.00201992,3713.8,3713.7,0.5731]
[1762153376285,0.3209,3715.2,3713.7,0.5731]
[1762153376286,3.2078,3714.8,3714.0,0.3344]
[1762153376488,3.2078,3714.8,3714.2,0.48468]
[1762153376691,0.3209,3716.4,3714.6,0.3344]
[1762153376692,3.2078,3715.5,3714.6,0.3344]
[1762153377492,3.21064509,3715.5,3714.6,0.3344]
[1762153378392,3.2078,3715.1,3714.5,3.2078]
[1762153378993,3.2078,3715.1,3714.0,0.3344]
[1762153379186,3.2078,3715.1,3714.2,3.2078]
[1762153379385,0.00284509,3715.5,3715.0,0.5731]
[1762153379386,3.21064509,3715.5,3715.0,0.5731]
[1762153380584,3.21064509,3715.5,3714.9,0.3344]
[1762153380789,3.21064509,3715.5,3714.6,3.2078]
[1762153380994,3.21064509,3715.5,3715.0,3.2078]
[1762153381498,3.21064509,3715.5,3715.4,0.5731]
[1762153381791,3.21064509,3715.5,3715.4,0.57525336]
[1762153381792,0.00284509,3715.5,3715.4,0.57525336]
[1762153382785,0.00284509,3715.5,3715.4,0.00215336]
[1762153384197,0.59144509,3715.5,3715.4,0.00215336]
[1762153384397,0.00284509,3715.5,3715.4,0.00215336]
[1762153384899,0.00284509,3715.5,3715.4,0.57525336]
[1762153386196,0.00284509,3715.5,3715.4,0.00215336]
[1762153386493,3.2078,3716.0,3715.4,0.00215336]
[1762153386494,3.2078,3716.0,3715.5,0.48452]
[1762153386695,3.2078,3716.5,3715.9,0.5731]
[1762153387693,3.21026269,3716.5,3715.9,0.5731]
[1762153389796,3.21026269,3716.5,3716.4,0.5731]
[1762153389996,0.00246269,3716.5,3716.4,0.5731]
[1762153391596,6.48,3718.5,3716.8,0.5731]
[1762153391597,3.2078,3717.4,3716.8,0.5731]
[1762153392299,0.3209,3717.7,3715.8,9.8938]
[1762153392300,3.2078,3716.9,3715.8,9.8938]
[1762153392497,3.2078,3716.5,3715.8,3.2078]
[1762153392686,3.21092835,3716.5,3715.8,3.2078]
[1762153392891,3.21092835,3716.5,3716.4,0.5731]
[1762153393093,0.00312835,3716.5,3716.4,0.5731]
[1762153393288,3.21092835,3716.5,3715.8,3.2078]
[1762153395902,0.5182,3715.5,3715.4,0.00215336]
[1762153396097,3.726,3715.5,3715.4,0.00215336]
[1762153397002,13.74457013,3715.5,3714.3,3.2078]
[1762153397297,0.5182,3714.4,3713.8,3.2078]
[1762153397503,0.1404,3714.9,3713.4,9.808]
[1762153397504,3.2078,3714.1,3713.4,9.808]
[1762153398098,3.2078,3714.6,3714.0,0.5378]
[1762153398410,3.2078,3714.1,3713.5,0.33754331]
[1762153399205,3.2078,3714.1,3713.5,0.00314331]
[1762153399496,3.726,3713.6,3713.5,0.00314331]
[1762153399696,3.72859663,3713.6,3713.5,0.00314331]
[1762153400296,0.279,3713.5,3712.0,3.238]
[1762153400491,3.2078,3712.9,3712.0,3.238]
[1762153400703,3.2078,3712.9,3712.3,3.2078]
[1762153401103,3.2078,3712.9,3712.0,3.238]
[1762153401303,3.2078,3712.9,3712.1,3.49947831]
[1762153401805,3.2078,3712.9,3712.1,0.29167831]
[1762153402508,3.2078,3713.3,3712.1,0.29167831]
[1762153402708,0.27778052,3713.2,3712.3,3.2078]
[1762153403005,3.2078,3713.3,3712.3,3.2078]
[1762153404801,3.2078,3713.3,3712.4,0.48491]
[1762153405201,3.2078,3713.3,3712.3,3.2078]
[1762153407106,0.00259663,3713.6,3712.2,0.48495]
[1762153407410,3.2078,3713.4,3712.6,3.2078]
[1762153410111,3.2078,3713.4,3712.8,0.2906]
[1762153410409,0.00259663,3713.6,3712.8,0.77547]
[1762153410612,0.00259663,3713.6,3712.8,0.2906]
[1762153413713,3.2078,3713.4,3712.8,0.2906]
[1762153418314,3.2078,3713.4,3712.6,3.2078]
[1762153418315,3.2078,3713.4,3712.6,3.669]
[1762153420316,0.00259663,3713.6,3713.1,3.2078]
[1762153420824,0.00259663,3713.6,3713.5,0.4612]
[1762153422723,0.00259663,3713.6,3713.1,3.2078]
[1762153423119,0.00259663,3713.6,3713.5,0.4612]
[1762153423326,0.00259663,3713.6,3713.5,3.669]
[1762153425034,3.2078,3714.3,3714.2,0.488]
[1762153425226,3.48719163,3714.3,3714.2,0.488]
[1762153425933,3.48977986,3714.3,3714.2,0.488]
[1762153426432,0.00258823,3714.3,3714.2,0.488]
[1762153427528,3.2078,3715.3,3714.2,0.488]
[1762153427724,0.28013383,3715.2,3714.5,3.2078]
[1762153427925,0.28013383,3715.1,3714.5,3.2078]
[1762153428126,0.28013383,3715.0,3714.1,0.48469]
[1762153428325,0.28013383,3714.9,3714.1,0.48469]
[1762153428527,0.00324129,3715.0,3714.0,3.4649]
[1762153428832,0.28006718,3714.9,3714.4,3.2078]
[1762153429032,0.00324129,3715.0,3714.4,3.2078]
[1762153429833,0.00324129,3715.0,3714.5,0.2681]
[1762153430737,3.2078,3714.8,3714.0,13.2599]
[1762153430936,3.2078,3714.8,3714.0,3.4649]
[1762153431439,0.26594129,3715.0,3714.0,3.4649]
[1762153431639,3.2078,3714.8,3714.0,3.4649]
[1762153432136,3.2078,3714.8,3714.0,3.2078]
[1762153432332,0.27975722,3714.7,3714.0,3.2078]
[1762153432530,3.2078,3714.8,3714.0,3.2078]
[1762153432738,0.27977841,3714.7,3714.0,3.2078]
[1762153433033,0.5493,3713.5,3713.0,3.41860031]
[1762153433239,0.4799,3713.1,3713.0,0.21080031]
[1762153433833,0.0694,3713.5,3712.6,3.2078]
[1762153434033,0.0694,3713.5,3712.5,0.2681]
[1762153434034,3.2078,3713.8,3713.1,0.488]
[1762153434234,0.27989705,3713.7,3713.1,0.488]
[1762153434434,0.27989705,3713.6,3713.1,0.488]
[1762153434637,3.2078,3713.8,3713.1,0.488]
[1762153434840,0.2799967,3713.7,3713.1,0.488]
[1762153435035,0.2799967,3713.6,3713.1,0.488]
[1762153435234,3.2078,3713.8,3713.1,0.488]
[1762153435435,0.28002106,3713.7,3713.1,0.488]
[1762153435640,0.28002106,3713.6,3713.1,0.488]
[1762153435845,3.2078,3713.8,3713.1,3.6958]
[1762153436037,0.28002051,3713.7,3713.1,3.2078]
[1762153436256,3.2078,3713.8,3713.6,0.488]
[1762153436439,3.2078,3713.8,3713.4,0.2681]
[1762153436637,3.2078,3713.8,3713.1,3.2078]
[1762153437740,3.2078,3713.8,3713.7,0.488]
[1762153437942,3.48787778,3713.8,3713.7,0.488]
[1762153438142,3.2078,3713.8,3713.7,0.488]
[1762153439433,3.2078,3713.8,3713.4,0.2681]
[1762153439635,3.2078,3713.8,3713.1,3.2078]
[1762153440548,3.2078,3714.6,3714.1,0.488]
[1762153440734,3.2078,3714.6,3713.6,3.2078]
[1762153440735,0.54301426,3714.5,3713.6,3.2078]
[1762153440937,0.28031426,3714.4,3713.6,3.2078]
[1762153441338,0.28031426,3714.4,3714.3,0.488]
[1762153441540,3.21104129,3715.0,3714.6,0.2681]
[1762153441841,0.2804291,3714.9,3714.6,0.2681]
[1762153442043,3.21104129,3715.0,3714.6,0.2681]
[1762153442636,3.21104129,3715.0,3714.0,3.4759]
[1762153443142,0.28049921,3714.9,3714.0,3.4759]
[1762153443341,0.28049921,3714.8,3714.0,3.4759]
[1762153443546,0.28049921,3714.7,3714.0,3.4759]
[1762153443746,3.21104129,3715.0,3714.0,3.4759]
[1762153443946,0.28051148,3714.9,3714.0,3.4759]
[1762153444243,0.28051148,3714.8,3714.0,3.4759]
[1762153444541,3.2078,3714.4,3713.3,3.2078]
[1762153444741,3.2078,3713.9,3712.9,3.2078]
[1762153445045,3.2078,3713.9,3712.9,3.69266]
[1762153445249,0.1461,3714.0,3713.3,3.2078]
[1762153445438,3.2078,3714.3,3713.4,0.2681]
[1762153445747,0.28055784,3714.2,3713.4,0.2681]
[1762153445940,3.2078,3714.3,3713.4,0.2681]
[1762153445941,0.28055784,3714.1,3713.4,0.2681]
[1762153446142,3.2078,3714.3,3713.4,0.2681]
[1762153446451,0.28060426,3714.2,3713.4,0.2681]
[1762153446749,0.28060426,3714.1,3714.0,0.7561]
[1762153446943,3.2078,3714.8,3714.0,0.7561]
[1762153447141,0.28061795,3714.7,3714.0,0.7561]
[1762153447339,3.2078,3714.8,3714.0,0.7561]
[1762153447541,3.2078,3715.3,3714.6,0.2681]
[1762153447744,3.2078,3715.3,3714.9,0.488]
[1762153448045,0.48314129,3715.0,3714.9,0.00188581]
[1762153448344,0.76385157,3715.0,3714.9,0.00188581]
[1762153449150,9.45380967,3715.0,3713.5,3.2078]
[1762153449444,3.2078,3714.3,3713.5,3.2078]
[1762153450237,3.2078,3714.3,3713.5,3.20985216]
[1762153451045,0.4799,3713.6,3713.5,0.00205216]
[1762153451846,3.6877,3713.6,3713.5,0.00205216]
[1762153452051,3.96855909,3713.6,3713.5,0.00205216]
[1762153452548,4.65860672,3713.6,3713.5,0.00205216]
[1762153453249,3.96855909,3713.6,3712.5,3.2078]
[1762153453549,0.1313,3713.4,3712.5,3.2078]
[1762153453747,0.28085909,3713.3,3712.5,3.2078]
[1762153454050,0.4799,3712.6,3712.5,0.00318629]
[1762153454357,0.4799,3711.8,3711.7,3.2078]
[1762153454646,0.4799,3711.8,3711.2,3.2078]
[1762153455344,0.48323723,3711.8,3711.2,3.21029064]
[1762153456651,0.4331,3711.3,3711.2,0.00249064]
[1762153457354,3.2078,3711.5,3711.2,0.00249064]
[1762153457554,0.00333723,3711.8,3711.2,0.00249064]
[1762153457948,0.00333723,3711.8,3711.7,0.4188]
[1762153458151,0.00333723,3711.8,3711.7,3.6266]
[1762153462957,0.43643723,3711.8,3711.7,3.2078]
[1762153463362,0.00333723,3711.8,3711.7,3.2078]
[1762153463654,0.00333723,3711.8,3711.7,3.6266]
[1762153464853,0.00333723,3711.8,3711.7,3.2078]
[1762153465058,0.43643723,3711.8,3711.7,3.2078]
[1762153465458,0.00333723,3711.8,3711.7,3.2078]
[1762153466953,0.37263723,3711.8,3711.2,3.21029064]
[1762153467260,0.3693,3711.3,3711.2,3.21029064]
[1762153467652,0.3693,3711.3,3711.2,0.00249064]
[1762153467851,11.5771,3711.3,3710.4,0.2681]
[1762153468057,3.2078,3710.9,3710.4,0.2681]
[1762153468557,3.2078,3710.9,3710.3,3.2078]
[1762153469156,3.2078,3710.9,3710.3,0.0019315]
[1762153471153,3.2078,3710.9,3710.4,0.2386]
[1762153471860,3.2078,3711.4,3710.8,0.3893]
[1762153472056,3.2078,3711.0,3710.8,0.3893]
[1762153472471,3.2078,3711.4,3710.8,0.3893]
[1762153476062,0.00333723,3711.8,3711.3,0.3893]
[1762153476364,0.00333723,3711.8,3711.7,0.3893]
[1762153480471,0.2174,3711.6,3710.7,3.2078]
[1762153481164,0.27994612,3711.5,3710.7,3.2078]
[1762153481372,0.27994612,3711.4,3710.7,3.2078]
[1762153481668,0.2174,3711.6,3710.7,3.2078]
[1762153481872,0.28410317,3711.5,3710.7,3.2078]
[1762153482066,0.28410317,3711.4,3710.7,3.2078]
[1762153482378,0.28410317,3711.3,3710.7,3.2078]
[1762153482568,0.2174,3711.6,3710.7,3.2078]
[1762153482868,0.28423364,3711.5,3710.7,3.2078]
[1762153483071,0.28423364,3711.4,3710.7,3.2078]
[1762153483266,0.28423364,3711.3,3710.7,3.2078]
[1762153483463,0.28423364,3711.2,3710.7,3.2078]
[1762153483664,3.2078,3711.4,3710.7,3.2078]
[1762153483865,0.28420883,3711.3,3710.7,3.2078]
[1762153484077,0.28420883,3711.2,3710.7,3.2078]
[1762153484270,3.2078,3711.4,3710.7,3.2078]
[1762153484471,0.2842933,3711.3,3710.7,3.2078]
[1762153484766,0.2842933,3711.2,3710.7,3.2078]
[1762153485072,0.3716,3710.8,3710.7,3.2078]
[1762153485372,0.6558933,3710.8,3710.7,3.2078]
[1762153485569,0.6558933,3710.8,3710.4,0.2386]
[1762153485871,0.28422784,3710.7,3710.4,0.2386]
[1762153486062,0.28422784,3710.6,3710.4,0.2386]
[1762153486264,0.28422784,3710.5,3710.4,0.2386]
[1762153487269,3.2078,3710.9,3710.4,0.2386]
[1762153487473,0.28409385,3710.8,3710.4,0.2386]
[1762153487769,3.2078,3710.9,3710.3,0.0019315]
[1762153487770,0.3716,3710.4,3710.3,0.0019315]
[1762153487964,0.65569385,3710.4,3710.3,0.0019315]
[1762153488168,0.28409385,3710.4,3710.3,0.3776315]
[1762153488478,3.2078,3710.9,3710.3,0.3776315]
[1762153488675,0.28389435,3710.8,3710.3,0.3776315]
[1762153488972,0.28389435,3710.7,3710.3,0.3776315]
[1762153489172,0.28389435,3710.6,3710.3,0.0019315]
[1762153489365,0.3716,3710.4,3710.3,0.0019315]
[1762153489565,0.65549435,3710.4,3710.3,0.0019315]
[1762153491173,3.86329435,3710.4,3710.3,0.0019315]
[1762153495775,4.54471535,3710.4,3710.3,0.0019315]
[1762153496167,3.86329435,3710.4,3710.3,0.0019315]
[1762153496569,4.54479621,3710.4,3710.3,0.0019315]
[1762153498676,0.3716,3709.8,3709.7,0.02695672]
[1762153498870,3.86329435,3709.8,3708.8,3.2078]
[1762153499180,3.2078,3709.4,3708.8,3.2078]
[1762153499372,0.28389435,3709.3,3708.8,3.2078]
[1762153499680,0.28389435,3709.2,3708.8,3.21127637]
[1762153499882,0.28389435,3709.1,3708.8,3.21127637]
[1762153500066,0.00272909,3709.2,3708.8,3.21127637]
[1762153500272,0.28392229,3709.1,3709.0,0.581]
[1762153500568,0.28392229,3709.1,3708.8,3.21127637]
[1762153500872,0.00272909,3709.2,3708.8,3.21127637]
[1762153501073,0.28410167,3709.1,3709.0,0.2053]
[1762153501276,0.00272909,3709.2,3709.1,0.3757]
[1762153501777,3.2078,3710.3,3709.8,0.3757]
[1762153501978,3.2078,3711.1,3710.2,0.3757]
[1762153502279,0.3716,3710.3,3710.0,0.2053]
[1762153502478,3.2078,3710.7,3710.0,0.2053]
[1762153502479,3.2078,3710.7,3710.2,0.3757]
[1762153502785,0.0026548,3710.3,3710.2,0.3757]
[1762153503174,0.0026548,3710.3,3709.5,3.4131]
[1762153503374,0.0026548,3710.3,3710.2,0.3757]
[1762153503777,0.0026548,3710.3,3710.0,0.2053]
[1762153504280,0.0026548,3710.3,3710.2,0.3757]
[1762153504482,3.2078,3711.1,3711.0,0.581]
[1762153505476,3.2105365,3711.1,3710.5,3.4131]
[1762153505675,3.2105365,3711.1,3710.5,0.2053]
[1762153506475,3.2105365,3711.1,3711.0,0.581]
[1762153506785,0.0027365,3711.1,3711.0,0.581]
[1762153507185,3.2078,3712.1,3712.0,0.581]
[1762153507379,0.21883219,3712.8,3712.0,0.581]
[1762153507380,3.2078,3712.6,3712.0,0.581]
[1762153507572,0.28390804,3712.5,3712.0,0.581]
[1762153507779,0.28390804,3712.4,3712.0,0.581]
[1762153508076,3.2078,3712.1,3712.0,0.00322783]
[1762153508278,0.00328187,3712.4,3712.0,0.37892783]
[1762153509287,0.00328187,3712.4,3712.3,0.3757]
[1762153514894,0.00328187,3712.4,3712.2,0.2053]
[1762153515288,0.00328187,3712.4,3712.3,0.3757]
[1762153516894,0.3479,3712.3,3712.0,0.00322783]
[1762153517094,0.00328187,3712.4,3712.0,0.00322783]
[1762153517095,0.3479,3712.1,3712.0,0.00322783]
[1762153517893,0.00328187,3712.4,3712.3,0.368]
[1762153518794,0.00328187,3712.4,3712.0,0.20812783]
[1762153519887,0.3479,3712.1,3712.0,0.00322783]
[1762153520198,0.00328187,3712.4,3712.0,0.57612783]
[1762153520397,0.00328187,3712.4,3712.3,0.368]
[1762153524402,3.2078,3713.4,3713.3,0.368]
[1762153524606,0.1917,3714.5,3713.5,0.2049]
[1762153524607,3.2078,3713.8,3713.5,0.2049]
[1762153524904,0.1917,3714.5,3713.7,0.368]
[1762153524905,3.2078,3714.2,3713.7,0.368]
[1762153525300,3.2078,3714.2,3714.1,0.368]
[1762153525503,3.20969035,3714.2,3714.1,0.368]
[1762153527407,0.00189035,3714.2,3714.1,0.368]
[1762153528093,0.025,3714.7,3714.0,3.4127]
[1762153528094,0.025,3714.7,3714.6,0.5094]
[1762153528512,3.2078,3715.5,3714.6,0.5094]
[1762153528897,3.2078,3715.5,3715.4,0.3193]
[1762153529200,3.20994729,3715.5,3715.4,0.32189662]
[1762153530404,3.51334729,3715.5,3715.4,0.00259662]
[1762153531403,3.51334729,3715.5,3715.4,0.32189662]
[1762153531404,3.20994729,3715.5,3715.4,0.32189662]
[1762153531800,3.51334729,3715.5,3715.4,0.00259662]
[1762153533203,3.20994729,3715.5,3715.4,0.32189662]
[1762153533505,3.20994729,3715.5,3715.4,0.00259662]
[1762153533704,3.51334729,3715.5,3715.4,0.00259662]
[1762153534007,3.79119534,3715.5,3715.4,0.00259662]
[1762153534602,12.13679534,3715.5,3712.9,3.2078]
[1762153534801,3.2078,3713.9,3712.9,3.2078]
[1762153535098,3.2078,3713.9,3713.3,3.2078]
[1762153535607,3.2078,3713.9,3713.5,0.20683213]
[1762153536510,3.2078,3713.9,3713.8,0.3193]
[1762153537220,3.2078,3713.9,3713.5,0.00193213]
[1762153537411,0.3034,3713.6,3713.5,0.00193213]
[1762153537914,0.58156841,3713.6,3713.5,0.00193213]
[1762153538109,0.3034,3713.0,3711.9,3.2078]
[1762153538321,3.2078,3712.7,3711.9,3.2078]
[1762153539013,3.21115897,3712.7,3711.9,3.2078]
[1762153539208,3.21115897,3712.7,3711.9,3.2101025]
[1762153540301,0.00335897,3712.7,3711.9,3.2101025]
[1762153540513,3.21115897,3712.7,3711.9,3.2101025]
[1762153542106,3.2078,3712.2,3711.9,0.0023025]
[1762153543311,3.2078,3712.2,3712.1,0.3193]
[1762153543819,3.2078,3712.2,3711.9,0.0023025]
[1762153544022,0.3034,3712.0,3711.9,0.0023025]
[1762153545823,0.5813344,3712.0,3711.9,1e-08]
[1762153547119,0.3034,3712.0,3711.9,1e-08]
[1762153548623,3.2078,3712.2,3711.9,1e-08]
[1762153551418,3.2078,3712.2,3712.1,0.2887]
[1762153551619,3.21115897,3712.7,3712.2,0.1681]
[1762153551824,3.487,3712.3,3711.9,1e-08]
[1762153552618,0.2792,3712.0,3711.9,1e-08]
[1762153554724,3.2078,3712.3,3711.9,1e-08]
[1762153554915,0.2792,3712.0,3711.9,1e-08]
[1762153555421,3.2078,3712.3,3711.9,1e-08]
[1762153557420,3.2078,3712.3,3712.2,0.1681]
[1762153557924,0.2792,3712.0,3711.9,1e-08]
[1762153558422,3.2078,3712.3,3711.9,1e-08]
[1762153559130,3.21115897,3712.7,3711.9,1e-08]
[1762153559333,3.2078,3712.3,3711.9,1e-08]
[1762153561631,0.2792,3712.0,3711.9,1e-08]
[1762153562718,0.55766803,3712.0,3711.0,0.1901]
[1762153563020,3.3873,3711.6,3710.7,3.2078]
[1762153563224,3.2078,3711.2,3710.4,0.1901]
[1762153563932,3.2078,3711.2,3710.4,0.19264995]
[1762153564633,3.2078,3711.2,3710.4,0.00254995]
[1762153564926,0.2792,3710.5,3710.4,0.00254995]
[1762153565134,0.5582386,3710.5,3710.4,0.00254995]
[1762153566325,1.25037618,3710.5,3710.4,0.00254995]
[1762153566623,0.5582386,3710.5,3710.4,0.00254995]
[1762153567831,0.5582386,3710.5,3709.7,0.02440677]
[1762153567832,8.2790386,3710.5,3709.7,0.02440677]
[1762153568035,5.39993482,3709.8,3707.7,2.41360427]
[1762153568335,0.2792,3707.7,3707.1,3.2078]
[1762153568730,0.55753381,3707.7,3706.8,9.716]
[1762153568936,0.5602308,3707.7,3707.6,0.47314563]
[1762153569137,0.28189699,3707.7,3707.6,0.47314563]
[1762153569635,0.28189699,3707.7,3706.2,0.1681]
[1762153569936,3.2078,3706.5,3706.2,0.1681]
[1762153570131,0.1849,3706.3,3705.6,3.3759]
[1762153570340,0.1849,3704.9,3704.8,0.21301084]
[1762153570629,3.2078,3705.3,3704.8,0.21301084]
[1762153570831,3.21044098,3705.3,3704.8,0.00223823]
[1762153571029,3.2078,3704.9,3704.8,0.00223823]
[1762153571231,3.3927,3704.9,3704.4,0.1681]
[1762153571834,3.3927,3704.9,3704.1,3.2078]
[1762153572237,3.3927,3704.9,3704.1,0.00302676]
[1762153572434,0.29716131,3704.8,3704.1,0.00302676]
[1762153572627,3.2078,3704.3,3704.1,0.00302676]
[1762153572832,0.29714291,3704.7,3704.1,0.00302676]
[1762153572833,3.2078,3704.7,3704.1,0.00302676]
[1762153573531,0.1849,3704.2,3704.1,0.00302676]
[1762153573832,0.1849,3703.4,3702.5,3.2078]
[1762153574030,3.2078,3703.3,3702.5,3.2078]
[1762153574231,3.2078,3703.3,3703.0,0.1681]
[1762153574436,3.2078,3704.8,3703.7,0.4568]
[1762153574632,0.00264098,3705.3,3703.9,3.2078]
[1762153574633,3.2078,3705.0,3703.9,3.2078]
[1762153574829,0.00264098,3705.3,3704.7,3.2078]
[1762153575141,3.21044098,3705.3,3704.4,0.1681]
[1762153575341,0.00264098,3705.3,3704.4,0.1681]
[1762153575633,3.2078,3705.0,3704.4,0.1681]
[1762153576438,3.2078,3704.6,3704.1,3.2078]
[1762153576636,3.2078,3704.2,3703.7,0.00333801]
[1762153577335,3.2078,3704.6,3703.7,0.00333801]
[1762153577839,3.2078,3703.9,3703.7,0.00333801]
[1762153578232,3.2078,3703.9,3703.0,0.1681]
[1762153578637,3.2078,3703.9,3703.0,6.8241]
[1762153578832,3.2078,3703.9,3702.8,3.2078]
[1762153579342,0.1253,3702.9,3702.8,0.00291131]
[1762153579547,0.1253,3702.5,3701.5,0.21483167]
[1762153579745,3.2078,3701.9,3701.3,3.2078]
[1762153580248,3.2078,3701.9,3700.8,3.3661]
[1762153580453,3.20974228,3701.9,3700.9,4.913]
[1762153580748,0.00194228,3701.9,3701.7,3.2078]
[1762153581237,0.0936,3701.6,3699.7,0.49826026]
[1762153581438,3.2078,3701.5,3700.8,0.1583]
[1762153581637,3.2078,3701.1,3700.8,0.1583]
[1762153581838,3.2078,3701.1,3700.9,3.818]
[1762153582139,3.2078,3701.1,3700.8,0.1583]
[1762153582332,0.00194228,3701.9,3700.8,0.1583]
[1762153582333,3.2078,3701.5,3701.1,0.4864]
[1762153582535,3.20974228,3701.9,3701.6,0.1583]
[1762153582838,0.00194228,3701.9,3701.6,0.64463]
[1762153583040,0.00194228,3701.9,3701.6,0.1583]
[1762153583236,0.00194228,3701.9,3701.7,0.48632]
[1762153583440,3.2078,3702.7,3702.4,0.1583]
[1762153584043,3.2078,3702.7,3700.8,0.16081329]
[1762153584044,1.82123482,3702.5,3700.8,0.16081329]
[1762153584248,3.2078,3701.1,3700.8,2.48481329]
[1762153584440,3.2078,3701.1,3700.8,0.16081329]
[1762153584640,3.2078,3701.1,3700.8,4.36481329]
[1762153584943,3.2078,3701.1,3700.8,9.98281329]
[1762153585139,3.2078,3701.1,3700.8,0.16081329]
[1762153585344,3.2078,3701.1,3700.8,0.00251329]
[1762153586850,3.2078,3701.1,3700.8,9.82751329]
[1762153587148,3.2078,3701.1,3700.8,0.00251329]
[1762153587449,3.2078,3701.1,3700.8,10.02621329]
[1762153588340,0.48641,3701.0,3700.9,9.822]
[1762153588734,0.48641,3701.0,3700.8,0.00251329]
[1762153589551,0.48641,3701.0,3700.8,9.82651329]
[1762153589952,0.48641,3701.0,3700.8,10.02721329]
[1762153592444,0.48641,3701.0,3700.9,9.813]
[1762153593356,3.2078,3701.1,3701.0,0.3317]
[1762153593649,3.2078,3701.1,3701.0,10.1437]
[1762153594158,3.2078,3701.1,3701.0,0.3317]
[1762153594754,3.2078,3701.1,3701.0,10.1407]
[1762153595353,3.2078,3701.1,3701.0,0.3317]
[1762153595655,3.2078,3701.1,3701.0,9.805]
[1762153595849,3.2078,3701.1,3700.8,0.20321329]
[1762153596050,3.2078,3701.1,3700.9,9.803]
[1762153596448,3.2078,3701.1,3701.0,10.1357]
[1762153596649,3.2078,3701.1,3701.0,10.1317]
[1762153597157,0.29664065,3701.1,3701.0,10.1317]
[1762153597652,3.2078,3701.1,3701.0,10.1317]
[1762153597849,3.2078,3701.1,3701.0,10.1307]
[1762153597850,3.50443405,3701.1,3701.0,10.1307]
[1762153598054,3.50443405,3701.1,3701.0,10.1277]
[1762153598465,0.29663405,3701.1,3701.0,0.3317]
[1762153598658,0.29663405,3701.1,3701.0,10.1257]
[1762153598856,0.29663405,3701.1,3701.0,0.3317]
[1762153599054,0.29663405,3701.1,3701.0,10.1227]
[1762153600256,0.29663405,3701.1,3701.0,0.3317]
[1762153600454,0.99198934,3701.1,3700.8,0.20321329]
[1762153600654,0.48642,3700.9,3700.8,0.20321329]
[1762153600855,1.47840934,3700.9,3700.8,0.20321329]
[1762153601056,1.47840934,3700.9,3700.8,9.98821329]
[1762153601361,1.47840934,3700.9,3700.8,10.31991329]
[1762153601557,3.2078,3701.4,3701.3,0.3317]
[1762153601960,3.2078,3701.4,3700.8,9.98821329]
[1762153601961,3.2078,3701.4,3700.8,0.20321329]
[1762153602154,3.4005,3701.4,3700.9,9.787]
[1762153603256,3.2078,3701.0,3700.9,9.787]
[1762153603458,3.2078,3701.0,3700.9,0.3317]
[1762153603861,3.2078,3701.0,3700.9,10.1157]
[1762153604061,3.2078,3701.5,3701.4,0.2007]
[1762153604252,1.3308736,3702.3,3702.2,0.3317]
[1762153604562,1.90508121,3703.2,3702.7,0.3317]
[1762153604860,3.2078,3703.3,3702.7,0.3317]
[1762153605459,3.2103336,3703.3,3702.7,0.3317]
[1762153605664,3.2103336,3703.3,3703.2,0.3109]
[1762153605964,3.2103336,3703.3,3703.2,10.1009]
[1762153606466,0.0025336,3703.3,3703.2,10.1009]
[1762153606964,0.0025336,3703.3,3703.2,10.0959]
[1762153609361,0.3198336,3703.3,3702.6,3.4085]
[1762153609560,3.5251,3702.8,3701.6,3.2078]
[1762153609762,3.2078,3702.4,3702.1,2.852]
[1762153610061,3.2078,3702.4,3701.6,3.2078]
[1762153610656,3.2078,3702.4,3702.1,9.774]
[1762153610858,3.2078,3702.4,3701.6,3.2078]
[1762153611060,2.02735301,3702.3,3701.1,3.2078]
[1762153611263,2.02735301,3702.3,3699.6,0.1833]
[1762153611264,3.2078,3701.7,3700.7,3.2078]
[1762153611559,0.1927,3702.6,3699.0,1.39998]
[1762153611560,0.3173,3700.9,3699.9,3.2078]
[1762153611768,0.3173,3700.9,3698.4,0.1833]
[1762153611769,0.3173,3699.8,3699.1,3.637]
[1762153612075,3.2078,3699.8,3699.1,3.637]
[1762153612666,3.21016109,3699.8,3699.7,0.50105566]
[1762153613169,0.00236109,3699.8,3699.7,0.50105566]
[1762153613467,0.00236109,3699.8,3699.7,0.81195566]
[1762153613670,3.2078,3700.3,3699.7,0.50105566]
[1762153613963,0.93813531,3700.2,3699.7,0.50105566]
[1762153614163,0.27067552,3700.1,3700.0,0.3109]
[1762153614464,2.09778121,3701.4,3700.0,0.79745]
[1762153614465,3.2078,3700.7,3700.0,0.79745]
[1762153614667,1.90508121,3702.0,3701.9,0.3109]
[1762153614867,3.2078,3703.2,3702.0,0.3109]
[1762153615171,2.02735301,3704.1,3702.2,3.2078]
[1762153615172,3.2078,3703.4,3702.2,3.2078]
[1762153615368,3.2078,3703.4,3701.8,3.2078]